fUSD/lending_fUSD_20250217
["ID","MTS","AMOUNT","RATE_DAILY","PERIOD"]
[353344298,1739785844280,-251.50013684,0.00013698,2]
[353344299,1739785844290,-500.0,0.00013698,2]
[353344300,1739785844300,-500.0,0.00013698,2]
[353344301,1739785844309,-500.0,0.00013698,2]
[353344302,1739785844319,-500.0,0.00013698,2]
[353344303,1739785844329,-500.0,0.00013698,2]
[353344304,1739785844339,-500.0,0.00013698,2]
[353344305,1739785844350,-500.0,0.00013698,2]
[353344306,1739785844360,-500.0,0.00013698,2]
[353344307,1739785844369,-955.64,0.00013698,2]
[353344308,1739785844379,-500.0,0.00013698,2]
[353344309,1739785844388,-500.0,0.00013698,2]
[353344310,1739785844399,-500.0,0.00013698,2]
[353344311,1739785844408,-500.0,0.00013698,2]
[353344312,1739785844418,-673.43,0.00013698,2]
[353344313,1739785844427,-500.0,0.00013698,2]
[353344314,1739785844437,-500.0,0.00013698,2]
[353344315,1739785844447,-500.0,0.00013698,2]
[353344316,1739785844456,-500.0,0.00013698,2]
[353344317,1739785844466,-500.0,0.00013698,2]
[353344318,1739785844475,-500.0,0.00013698,2]
[353344319,1739785844485,-500.0,0.00013698,2]
[353344320,1739785844496,-506.61389135,0.00013698,2]
[353344321,1739785844506,-500.0,0.00013698,2]
[353344322,1739785844516,-500.0,0.00013698,2]
[353344323,1739785844527,-500.0,0.00013698,2]
[353344324,1739785844537,-504.50407588,0.00013698,2]
[353344325,1739785844547,-500.0,0.00013698,2]
[353344326,1739785844558,-500.0,0.00013698,2]
[353344327,1739785844567,-500.0,0.00013698,2]
[353344328,1739785844577,-498.36434824,0.00013698,2]
[353344329,1739785844587,-500.0,0.00013698,2]
[353344330,1739785844597,-500.0,0.00013698,2]
[353344331,1739785844607,-500.0,0.00013698,2]
[353344332,1739785844616,-500.0,0.00013698,2]
[353344333,1739785844626,-500.0,0.00013698,2]
[353344334,1739785844636,-500.0,0.00013698,2]
[353344335,1739785844647,-506.68,0.00013698,2]
[353344336,1739785844659,-506.52008841,0.00013698,2]
[353344337,1739785844668,-500.0,0.00013698,2]
[353344338,1739785844678,-508.37500325,0.00013698,2]
[353344339,1739785844688,-500.0,0.00013698,2]
[353344340,1739785844699,-500.0,0.00013698,2]
[353344341,1739785844709,-500.0,0.00013698,2]
[353344342,1739785844719,-500.0,0.00013698,2]
[353344343,1739785844728,-500.0,0.00013698,2]
[353344344,1739785844740,-500.0,0.00013698,2]
[353344345,1739785844750,-500.0,0.00013698,2]
[353344346,1739785844760,-740.95,0.00013698,2]
[353344347,1739785844770,-761.86,0.00013698,2]
[353344348,1739785844779,-500.0,0.00013698,2]
[353344349,1739785844788,-500.0,0.00013698,2]
[353344350,1739785844799,-500.0,0.00013698,2]
[353344351,1739785844808,-500.0,0.00013698,2]
[353344352,1739785844817,-500.0,0.00013698,2]
[353344353,1739785844827,-500.0,0.00013698,2]
[353344354,1739785844836,-500.0,0.00013698,2]
[353344355,1739785844846,-500.0,0.00013698,2]
[353344356,1739785844855,-676.56,0.00013698,2]
[353344357,1739785844864,-500.0,0.00013698,2]
[353344358,1739785844874,-500.0,0.00013698,2]
[353344359,1739785844883,-500.0,0.00013698,2]
[353344360,1739785844893,-500.0,0.00013698,2]
[353344361,1739785844903,-511.1663468,0.00013698,2]
[353344362,1739785844912,-500.0,0.00013698,2]
[353344363,1739785844922,-500.0,0.00013698,2]
[353344364,1739785844932,-500.0,0.00013698,2]
[353344365,1739785844941,-500.0,0.00013698,2]
[353344366,1739785844951,-500.0,0.00013698,2]
[353344367,1739785844960,-500.0,0.00013698,2]
[353344368,1739785844970,-500.0,0.00013698,2]
[353344369,1739785844980,-500.0,0.00013698,2]
[353344370,1739785844993,-500.0,0.00013698,2]
[353344371,1739785845002,-500.0,0.00013698,2]
[353344372,1739785845012,-500.0,0.00013698,2]
[353344373,1739785845022,-500.0,0.00013698,2]
[353344374,1739785845031,-500.0,0.00013698,2]
[353344375,1739785845042,-500.0,0.00013698,2]
[353344376,1739785845052,-547.48,0.00013698,2]
[353344377,1739785845061,-500.0,0.00013698,2]
[353344378,1739785845071,-500.0,0.00013698,2]
[353344379,1739785845080,-238.71193979,0.00013698,2]
[353344380,1739785845090,-500.0,0.00013698,2]
[353344381,1739785845099,-500.0,0.00013698,2]
[353344382,1739785845108,-500.0,0.00013698,2]
[353344383,1739785845118,-500.0,0.00013698,2]
[353344384,1739785845127,-500.0,0.00013698,2]
[353344385,1739785845137,-500.0,0.00013698,2]
[353344386,1739785845146,-500.0,0.00013698,2]
[353344387,1739785845156,-793.8,0.00013698,2]
[353344388,1739785845165,-500.0,0.00013698,2]
[353344389,1739785845175,-500.0,0.00013698,2]
[353344390,1739785845184,-500.0,0.00013698,2]
[353344391,1739785845194,-500.0,0.00013698,2]
[353344392,1739785845203,-742.35,0.00013698,2]
[353344393,1739785845213,-500.0,0.00013698,2]
[353344394,1739785845223,-500.0,0.00013698,2]
[353344395,1739785845233,-500.0,0.00013698,2]
[353344396,1739785845242,-500.0,0.00013698,2]
[353344397,1739785845252,-816.64,0.00013698,2]
[353344398,1739785845262,-500.0,0.00013698,2]
[353344399,1739785845271,-500.0,0.00013698,2]
[353344400,1739785845281,-500.0,0.00013698,2]
[353344401,1739785845291,-500.0,0.00013698,2]
[353344402,1739785845304,-500.0,0.00013698,2]
[353344403,1739785845318,-500.0,0.00013698,2]
[353344404,1739785845331,-507.91988386,0.00013698,2]
[353344405,1739785845342,-500.0,0.00013698,2]
[353344406,1739785845354,-513.82,0.00013698,2]
[353344407,1739785845367,-503.25475271,0.00013698,2]
[353344408,1739785845379,-500.0,0.00013698,2]
[353344409,1739785845394,-500.0,0.00013698,2]
[353344410,1739785845407,-500.0,0.00013698,2]
[353344411,1739785845419,-500.0,0.00013698,2]
[353344412,1739785845431,-500.0,0.00013698,2]
[353344413,1739785845443,-500.0,0.00013698,2]
[353344414,1739785845455,-505.0644447,0.00013698,2]
[353344415,1739785845469,-1120.01,0.00013698,2]
[353344416,1739785845481,-500.0,0.00013698,2]
[353344417,1739785845496,-500.0,0.00013698,2]
[353344418,1739785845509,-500.0,0.00013698,2]
[353344419,1739785845523,-500.0,0.00013698,2]
[353344420,1739785845537,-500.0,0.00013698,2]
[353344421,1739785845551,-500.0,0.00013698,2]
[353344422,1739785845564,-500.0,0.00013698,2]
[353344423,1739785845579,-500.0,0.00013698,2]
[353344424,1739785845592,-500.0,0.00013698,2]
[353344425,1739785845604,-677.62,0.00013698,2]
[353344426,1739785845617,-500.0,0.00013698,2]
[353344427,1739785845629,-500.0,0.00013698,2]
[353344428,1739785845641,-500.0,0.00013698,2]
[353344429,1739785845655,-500.0,0.00013698,2]
[353344430,1739785845669,-500.0,0.00013698,2]
[353344431,1739785845681,-500.0,0.00013698,2]
[353344433,1739785845691,-804.77,0.00013698,2]
[353344434,1739785845703,-500.0,0.00013698,2]
[353344435,1739785845714,-2305.83,0.00013698,2]
[353344436,1739785845727,-505.77654096,0.00013698,2]
[353344437,1739785845742,-696.94,0.00013698,2]
[353344438,1739785845752,-500.0,0.00013698,2]
[353344439,1739785845763,-500.0,0.00013698,2]
[353344440,1739785845773,-500.0,0.00013698,2]
[353344441,1739785845784,-500.0,0.00013698,2]
[353344442,1739785845798,-500.0,0.00013698,2]
[353344443,1739785845810,-500.0,0.00013698,2]
[353344444,1739785845820,-844.41,0.00013698,2]
[353344445,1739785845831,-559.21,0.00013698,2]
[353344446,1739785845843,-500.0,0.00013698,2]
[353344447,1739785845855,-508.56178471,0.00013698,2]
[353344448,1739785845867,-334.46267915,0.00013698,2]
[353344449,1739785845879,-500.0,0.00013698,2]
[353344450,1739785845890,-548.37,0.00013698,2]
[353344451,1739785845902,-846.95,0.00013698,2]
[353344452,1739785845914,-500.0,0.00013698,2]
[353344453,1739785845926,-500.0,0.00013698,2]
[353344454,1739785845940,-500.0,0.00013698,2]
[353344455,1739785845952,-500.0,0.00013698,2]
[353344456,1739785845963,-1348.96,0.00013698,2]
[353344457,1739785845976,-500.0,0.00013698,2]
[353344458,1739785845987,-175.30431393,0.00013698,2]
[353344459,1739785846000,-1426.27,0.00013698,2]
[353344460,1739785846011,-500.0,0.00013698,2]
[353344461,1739785846023,-500.0,0.00013698,2]
[353344462,1739785846034,-926.52,0.00013698,2]
[353344463,1739785846047,-500.0,0.00013698,2]
[353344464,1739785846058,-500.0,0.00013698,2]
[353344465,1739785846070,-500.0,0.00013698,2]
[353344466,1739785846082,-500.0,0.00013698,2]
[353344467,1739785846095,-500.0,0.00013698,2]
[353344468,1739785846107,-942.43,0.00013698,2]
[353344469,1739785846119,-500.0,0.00013698,2]
[353344470,1739785846131,-500.0,0.00013698,2]
[353344471,1739785846143,-500.0,0.00013698,2]
[353344472,1739785846158,-500.0,0.00013698,2]
[353344473,1739785846170,-500.0,0.00013698,2]
[353344474,1739785846182,-500.0,0.00013698,2]
[353344475,1739785846194,-500.0,0.00013698,2]
[353344476,1739785846208,-922.51,0.00013698,2]
[353344477,1739785846220,-500.0,0.00013698,2]
[353344478,1739785846231,-500.0,0.00013698,2]
[353344479,1739785846243,-500.0,0.00013698,2]
[353344480,1739785846255,-1602.66,0.00013698,2]
[353344481,1739785846267,-500.0,0.00013698,2]
[353344482,1739785846279,-500.0,0.00013698,2]
[353344483,1739785846291,-500.0,0.00013698,2]
[353344484,1739785846303,-500.0,0.00013698,2]
[353344485,1739785846316,-500.0,0.00013698,2]
[353344486,1739785846328,-1736.86,0.00013698,2]
[353344487,1739785846341,-500.0,0.00013698,2]
[353344488,1739785846356,-500.0,0.00013698,2]
[353344489,1739785846368,-500.0,0.00013698,2]
[353344490,1739785846380,-508.84,0.00013698,2]
[353344491,1739785846397,-500.0,0.00013698,2]
[353344492,1739785846410,-1705.59,0.00013698,2]
[353344493,1739785846421,-500.0,0.00013698,2]
[353344494,1739785846434,-500.0,0.00013698,2]
[353344495,1739785846448,-500.0,0.00013698,2]
[353344496,1739785846462,-500.0,0.00013698,2]
[353344497,1739785846474,-1300.37,0.00013698,2]
[353344498,1739785846487,-1097.05,0.00013698,2]
[353344499,1739785846498,-500.0,0.00013698,2]
[353344500,1739785846510,-1125.11,0.00013698,2]
[353344501,1739785846521,-1016.88,0.00013698,2]
[353344502,1739785846533,-500.0,0.00013698,2]
[353344503,1739785846544,-500.0,0.00013698,2]
[353344504,1739785846555,-500.0,0.00013698,2]
[353344505,1739785846566,-500.0,0.00013698,2]
[353344506,1739785846577,-1045.27,0.00013698,2]
[353344507,1739785846588,-500.0,0.00013698,2]
[353344508,1739785846599,-500.0,0.00013698,2]
[353344509,1739785846610,-500.0,0.00013698,2]
[353344510,1739785846621,-1565.96,0.00013698,2]
[353344511,1739785846633,-1214.2,0.00013698,2]
[353344512,1739785846648,-890.53,0.00013698,2]
[353344513,1739785846662,-500.0,0.00013698,2]
[353344514,1739785846673,-713.04,0.00013698,2]
[353344515,1739785846685,-500.0,0.00013698,2]
[353344516,1739785846697,-500.0,0.00013698,2]
[353344517,1739785846708,-506.65800186,0.00013698,2]
[353344518,1739785846720,-505.78309902,0.00013698,2]
[353344519,1739785846732,-500.0,0.00013698,2]
[353344520,1739785846745,-5049.57101626,0.00013698,2]
[353344521,1739785846757,-1409.69,0.00013698,2]
[353344522,1739785846770,-500.0,0.00013698,2]
[353344523,1739785846781,-899.22,0.00013698,2]
[353344524,1739785846792,-500.0,0.00013698,2]
[353344525,1739785846804,-1121.01,0.00013698,2]
[353344526,1739785846817,-500.0,0.00013698,2]
[353344527,1739785846828,-500.0,0.00013698,2]
[353344528,1739785846840,-500.0,0.00013698,2]
[353344529,1739785846852,-500.0,0.00013698,2]
[353344530,1739785846864,-500.0,0.00013698,2]
[353344531,1739785846875,-500.0,0.00013698,2]
[353344532,1739785846888,-609.6754293,0.00013698,2]
[353344533,1739785846900,-500.0,0.00013698,2]
[353344534,1739785846912,-500.0,0.00013698,2]
[353344535,1739785846924,-1000.0,0.00013698,2]
[353344536,1739785846936,-500.0,0.00013698,2]
[353344537,1739785846947,-500.0,0.00013698,2]
[353344538,1739785846959,-500.0,0.00013698,2]
[353344539,1739785846970,-593.52,0.00013698,2]
[353344540,1739785846982,-500.0,0.00013698,2]
[353344541,1739785846994,-500.0,0.00013698,2]
[353344542,1739785847006,-501.91210257,0.00013698,2]
[353344543,1739785847018,-1180.59,0.00013698,2]
[353344544,1739785847030,-503.97429505,0.00013698,2]
[353344545,1739785847044,-4867.8,0.00013698,2]
[353344546,1739785847058,-500.0,0.00013698,2]
[353344547,1739785847069,-828.14,0.00013698,2]
[353344548,1739785847082,-500.0,0.00013698,2]
[353344549,1739785847095,-500.0,0.00013698,2]
[353344550,1739785847107,-500.0,0.00013698,2]
[353344551,1739785847119,-500.0,0.00013698,2]
[353344552,1739785847130,-500.0,0.00013698,2]
[353344553,1739785847142,-500.0,0.00013698,2]
[353344554,1739785847154,-1432.3,0.00013698,2]
[353344555,1739785847166,-500.0,0.00013698,2]
[353344556,1739785847177,-151.0,0.00013698,2]
[353344557,1739785847188,-151.0,0.00013698,2]
[353344558,1739785847200,-151.0,0.00013698,2]
[353344559,1739785847211,-151.0,0.00013698,2]
[353344560,1739785847222,-151.0,0.00013698,2]
[353344561,1739785847233,-500.0,0.00013698,2]
[353344562,1739785847245,-151.0,0.00013698,2]
[353344563,1739785847256,-500.0,0.00013698,2]
[353344564,1739785847267,-151.0,0.00013698,2]
[353344565,1739785847279,-151.0,0.00013698,2]
[353344566,1739785847291,-151.0,0.00013698,2]
[353344567,1739785847303,-500.0,0.00013698,2]
[353344568,1739785847314,-151.0,0.00013698,2]
[353344569,1739785847326,-500.0,0.00013698,2]
[353344570,1739785847337,-151.0,0.00013698,2]
[353344571,1739785847349,-1106.06,0.00013698,2]
[353344572,1739785847360,-151.0,0.00013698,2]
[353344573,1739785847371,-151.0,0.00013698,2]
[353344574,1739785847383,-151.0,0.00013698,2]
[353344575,1739785847394,-500.0,0.00013698,2]
[353344576,1739785847406,-151.0,0.00013698,2]
[353344577,1739785847418,-151.0,0.00013698,2]
[353344578,1739785847429,-500.0,0.00013698,2]
[353344579,1739785847441,-151.0,0.00013698,2]
[353344580,1739785847453,-1596.9,0.00013698,2]
[353344581,1739785847464,-151.0,0.00013698,2]
[353344582,1739785847477,-151.0,0.00013698,2]
[353344583,1739785847489,-151.0,0.00013698,2]
[353344584,1739785847501,-500.0,0.00013698,2]
[353344585,1739785847512,-151.0,0.00013698,2]
[353344586,1739785847526,-151.0,0.00013698,2]
[353344587,1739785847539,-151.0,0.00013698,2]
[353344588,1739785847551,-151.0,0.00013698,2]
[353344589,1739785847563,-500.0,0.00013698,2]
[353344590,1739785847576,-1869.27,0.00013698,2]
[353344591,1739785847590,-244.84180271,0.00013698,2]
[353344592,1739785847601,-2168.27,0.00013698,2]
[353344593,1739785847615,-945.87,0.00013698,2]
[353344594,1739785847626,-636.09,0.00013698,2]
[353344595,1739785847947,-500.0,0.00013698,2]
[353344596,1739785847967,-500.0,0.00013698,2]
[353344597,1739785848000,-500.0,0.00013698,2]
[353344598,1739785848012,-553.53,0.00013698,2]
[353344599,1739785848023,-500.0,0.00013698,2]
[353344600,1739785848034,-799.35,0.00013698,2]
[353344601,1739785848045,-866.99,0.00013698,2]
[353344602,1739785848055,-500.0,0.00013698,2]
[353344603,1739785848064,-500.0,0.00013698,2]
[353344604,1739785848074,-1361.74,0.00013698,2]
[353344605,1739785848084,-863.63,0.00013698,2]
[353344606,1739785848094,-500.0,0.00013698,2]
[353344607,1739785848104,-409.8170828,0.00013698,2]
[353344608,1739785848113,-500.0,0.00013698,2]
[353344609,1739785848123,-500.0,0.00013698,2]
[353344610,1739785848133,-766.79,0.00013698,2]
[353344611,1739785848143,-500.0,0.00013698,2]
[353344612,1739785848155,-500.0,0.00013698,2]
[353344613,1739785848165,-500.0,0.00013698,2]
[353344614,1739785848174,-500.0,0.00013698,2]
[353344615,1739785848183,-500.0,0.00013698,2]
[353344616,1739785848192,-602.64,0.00013698,2]
[353344617,1739785848201,-682.78,0.00013698,2]
[353344618,1739785848211,-500.0,0.00013698,2]
[353344619,1739785848220,-1567.98,0.00013698,2]
[353344620,1739785848229,-500.0,0.00013698,2]
[353344621,1739785848238,-1599.08,0.00013698,2]
[353344622,1739785848247,-1249.85,0.00013698,2]
[353344623,1739785848256,-500.0,0.00013698,2]
[353344624,1739785848265,-154.41969247,0.00013698,2]
[353344625,1739785848274,-1019.06,0.00013698,2]
[353344626,1739785848283,-500.0,0.00013698,2]
[353344627,1739785848292,-1554.0,0.00013698,2]
[353344628,1739785848301,-500.0,0.00013698,2]
[353344629,1739785848311,-501.21466337,0.00013698,2]
[353344630,1739785848320,-501.48922676,0.00013698,2]
[353344631,1739785848329,-1204.88,0.00013698,2]
[353344632,1739785848339,-500.0,0.00013698,2]
[353344633,1739785848348,-500.0,0.00013698,2]
[353344634,1739785848357,-1449.65,0.00013698,2]
[353344635,1739785848367,-500.0,0.00013698,2]
[353344636,1739785848376,-500.0,0.00013698,2]
[353344637,1739785848385,-3933.47,0.00013698,2]
[353344638,1739785848394,-500.0,0.00013698,2]
[353344639,1739785848406,-500.0,0.00013698,2]
[353344640,1739785848416,-500.0,0.00013698,2]
[353344641,1739785848427,-500.0,0.00013698,2]
[353344642,1739785848437,-1119.0,0.00013698,2]
[353344643,1739785848447,-500.0,0.00013698,2]
[353344644,1739785848457,-500.0,0.00013698,2]
[353344645,1739785848466,-500.0,0.00013698,2]
[353344646,1739785848476,-430.24869312,0.00013698,2]
[353344647,1739785848485,-1330.79,0.00013698,2]
[353344648,1739785848495,-503.24772167,0.00013698,2]
[353344649,1739785848505,-500.0,0.00013698,2]
[353344650,1739785848515,-500.0,0.00013698,2]
[353344651,1739785848525,-308.49844934,0.00013698,2]
[353344652,1739785848535,-500.0,0.00013698,2]
[353344653,1739785848545,-500.0,0.00013698,2]
[353344654,1739785848555,-500.0,0.00013698,2]
[353344655,1739785848566,-500.0,0.00013698,2]
[353344656,1739785848575,-506.14965333,0.00013698,2]
[353344657,1739785848585,-1198.98,0.00013698,2]
[353344658,1739785848595,-500.0,0.00013698,2]
[353344659,1739785848605,-1489.98,0.00013698,2]
[353344660,1739785848615,-500.0,0.00013698,2]
[353344661,1739785848625,-199.61446163,0.00013698,2]
[353344662,1739785848635,-500.0,0.00013698,2]
[353344663,1739785848645,-1597.61,0.00013698,2]
[353344664,1739785848660,-1341.65,0.00013698,2]
[353344665,1739785848670,-500.0,0.00013698,2]
[353344666,1739785848680,-500.0,0.00013698,2]
[353344667,1739785848690,-500.0,0.00013698,2]
[353344668,1739785848700,-500.0,0.00013698,2]
[353344669,1739785848711,-500.0,0.00013698,2]
[353344670,1739785848721,-500.0,0.00013698,2]
[353344671,1739785848731,-500.0,0.00013698,2]
[353344672,1739785848743,-500.0,0.00013698,2]
[353344673,1739785848753,-630.2,0.00013698,2]
[353344674,1739785848763,-500.0,0.00013698,2]
[353344675,1739785848773,-500.0,0.00013698,2]
[353344676,1739785848783,-500.0,0.00013698,2]
[353344677,1739785848793,-814.71,0.00013698,2]
[353344678,1739785848804,-564.87984386,0.00013698,2]
[353344679,1739785848814,-797.16,0.00013698,2]
[353344680,1739785848824,-500.0,0.00013698,2]
[353344681,1739785848834,-329.71659935,0.00013698,2]
[353344682,1739785848845,-500.0,0.00013698,2]
[353344683,1739785848854,-500.0,0.00013698,2]
[353344684,1739785848865,-500.0,0.00013698,2]
[353344685,1739785848874,-319.55333862,0.00013698,2]
[353344686,1739785848885,-1450.07,0.00013698,2]
[353344687,1739785848895,-1756.44,0.00013698,2]
[353344688,1739785848906,-897.05,0.00013698,2]
[353344689,1739785848916,-500.0,0.00013698,2]
[353344690,1739785848925,-500.0,0.00013698,2]
[353344691,1739785848935,-500.0,0.00013698,2]
[353344692,1739785848945,-497.71336193,0.00013698,2]
[353344693,1739785848955,-1494.5,0.00013698,2]
[353344694,1739785848966,-500.0,0.00013698,2]
[353344695,1739785848975,-500.0,0.00013698,2]
[353344696,1739785848985,-500.0,0.00013698,2]
[353344697,1739785848995,-491.0,0.00013698,2]
[353344698,1739785849006,-500.0,0.00013698,2]
[353344699,1739785849016,-584.55,0.00013698,2]
[353344700,1739785849027,-854.95,0.00013698,2]
[353344701,1739785849038,-500.0,0.00013698,2]
[353344702,1739785849048,-500.0,0.00013698,2]
[353344703,1739785849060,-500.0,0.00013698,2]
[353344704,1739785849071,-496.56644236,0.00013698,2]
[353344705,1739785849080,-500.0,0.00013698,2]
[353344706,1739785849091,-500.0,0.00013698,2]
[353344707,1739785849101,-500.0,0.00013698,2]
[353344708,1739785849111,-1892.42,0.00013698,2]
[353344709,1739785849121,-500.0,0.00013698,2]
[353344710,1739785849131,-500.0,0.00013698,2]
[353344711,1739785849141,-500.0,0.00013698,2]
[353344712,1739785849153,-500.0,0.00013698,2]
[353344713,1739785849164,-1048.77,0.00013698,2]
[353344714,1739785849174,-508.60638637,0.00013698,2]
[353344715,1739785849185,-500.0,0.00013698,2]
[353344716,1739785849196,-500.0,0.00013698,2]
[353344717,1739785849206,-502.13371679,0.00013698,2]
[353344718,1739785849216,-595.3,0.00013698,2]
[353344719,1739785849227,-500.0,0.00013698,2]
[353344720,1739785849237,-500.0,0.00013698,2]
[353344721,1739785849247,-500.0,0.00013698,2]
[353344722,1739785849256,-500.0,0.00013698,2]
[353344723,1739785849266,-1245.18,0.00013698,2]
[353344724,1739785849276,-500.0,0.00013698,2]
[353344725,1739785849287,-500.0,0.00013698,2]
[353344726,1739785849297,-500.0,0.00013698,2]
[353344727,1739785849307,-504.40589379,0.00013698,2]
[353344728,1739785849316,-500.0,0.00013698,2]
[353344729,1739785849327,-500.0,0.00013698,2]
[353344730,1739785849338,-500.0,0.00013698,2]
[353344731,1739785849348,-1151.6,0.00013698,2]
[353344732,1739785849358,-500.0,0.00013698,2]
[353344733,1739785849369,-650.45,0.00013698,2]
[353344734,1739785849379,-500.0,0.00013698,2]
[353344735,1739785849389,-500.0,0.00013698,2]
[353344736,1739785849399,-500.0,0.00013698,2]
[353344737,1739785849409,-500.95068515,0.00013698,2]
[353344738,1739785849420,-613.82,0.00013698,2]
[353344739,1739785849430,-500.0,0.00013698,2]
[353344740,1739785849440,-500.0,0.00013698,2]
[353344741,1739785849451,-1178.63,0.00013698,2]
[353344742,1739785849462,-500.0,0.00013698,2]
[353344743,1739785849472,-500.0,0.00013698,2]
[353344744,1739785849481,-534.69278765,0.00013698,2]
[353344745,1739785849491,-500.0,0.00013698,2]
[353344746,1739785849501,-500.0,0.00013698,2]
[353344747,1739785849511,-923.6,0.00013698,2]
[353344748,1739785849521,-1291.92,0.00013698,2]
[353344749,1739785849531,-500.0,0.00013698,2]
[353344750,1739785849541,-1145.31,0.00013698,2]
[353344751,1739785849551,-514.11,0.00013698,2]
[353344752,1739785849562,-900.22,0.00013698,2]
[353344753,1739785849572,-512.78653908,0.00013698,2]
[353344754,1739785849582,-500.0,0.00013698,2]
[353344755,1739785849592,-220.99498161,0.00013698,2]
[353344756,1739785849602,-902.6,0.00013698,2]
[353344757,1739785849612,-506.89448119,0.00013698,2]
[353344758,1739785849622,-500.0,0.00013698,2]
[353344759,1739785849631,-2189.43,0.00013698,2]
[353344760,1739785849641,-1105.51,0.00013698,2]
[353344761,1739785849651,-500.0,0.00013698,2]
[353344762,1739785849662,-500.0,0.00013698,2]
[353344763,1739785849671,-500.0,0.00013698,2]
[353344764,1739785849681,-500.0,0.00013698,2]
[353344765,1739785849692,-500.0,0.00013698,2]
[353344766,1739785849702,-795.81,0.00013698,2]
[353344767,1739785849711,-507.85058523,0.00013698,2]
[353344768,1739785849721,-500.0,0.00013698,2]
[353344769,1739785849740,-500.0,0.00013698,2]
[353344770,1739785849751,-895.9,0.00013698,2]
[353344771,1739785849760,-500.0,0.00013698,2]
[353344772,1739785849770,-500.0,0.00013698,2]
[353344773,1739785849779,-500.0,0.00013698,2]
[353344774,1739785849789,-500.0,0.00013698,2]
[353344775,1739785849800,-1397.47,0.00013698,2]
[353344776,1739785849811,-1199.38,0.00013698,2]
[353344777,1739785849822,-500.0,0.00013698,2]
[353344778,1739785849833,-554.43,0.00013698,2]
[353344779,1739785849844,-507.11890795,0.00013698,2]
[353344780,1739785849853,-500.0,0.00013698,2]
[353344781,1739785849863,-500.0,0.00013698,2]
[353344782,1739785849872,-500.0,0.00013698,2]
[353344783,1739785849882,-500.0,0.00013698,2]
[353344784,1739785849893,-500.0,0.00013698,2]
[353344785,1739785849903,-500.0,0.00013698,2]
[353344786,1739785849913,-327.48283416,0.00013698,2]
[353344787,1739785849923,-727.35,0.00013698,2]
[353344788,1739785849933,-508.59214918,0.00013698,2]
[353344789,1739785849943,-500.0,0.00013698,2]
[353344790,1739785849954,-493.18896454,0.00013698,2]
[353344791,1739785849964,-500.0,0.00013698,2]
[353344792,1739785849973,-1686.24,0.00013698,2]
[353344793,1739785849983,-500.0,0.00013698,2]
[353344794,1739785849992,-500.0,0.00013698,2]
[353344795,1739785850002,-274.52973244,0.00013698,2]
[353344796,1739785850011,-2552.44,0.00013698,2]
[353344797,1739785850022,-500.0,0.00013698,2]
[353344798,1739785850034,-500.0,0.00013698,2]